Cogmind - Beta 13 @@@ ROGUE MODE // 2024.04.22 @ 01:20:17 Player: Peregrine Result: Destroyed by X-57 Shotgunner with High-powered Shotgun Performance ------------- Evolutions (2) 1000 Regions Visited (4) 800 Robots Destroyed (38) 190 Value Destroyed (952) 952 Prototype IDs (6) 120 Alien Tech Used (0) 0 Bonus (0) 0 TOTAL SCORE: 3062 Bonus ------- None Cogmind --------- Core Integrity 0/550 Matter 208/300 Energy 130/265 System Corruption 0% Temperature Warm (110) Movement Walking (90) Location -8/Materials Parts ------- > --- POWER (1) -------- Improved Ion Engine > --- PROPULSION (3) --- VSS Leg VSS Leg VSS Leg > --- UTILITY (5) ------ Medium Storage Unit Hacking Suite Hacking Suite Hacking Suite System Shield > --- WEAPON (2) ------- Particle Gun Minigun > --- INVENTORY (10) --- VSS Leg VSS Leg VSS Leg VSS Leg Improved Heat Sink Advanced EMP Blaster Improved Datajack Improved Datajack Peak State ------------ > --- POWER ------------ Improved Ion Engine > --- PROPULSION ------- VSS Leg VSS Leg VSS Leg > --- UTILITY ---------- Medium Storage Unit Hacking Suite Hacking Suite Hacking Suite Hacking Suite > --- WEAPON ----------- EM Pulse Cannon Advanced EMP Blaster > --- INVENTORY -------- VSS Leg VSS Leg VSS Leg VSS Leg Hacking Suite System Shield Beam Rifle Heavy Particle Gun Improved Datajack Improved Datajack [Rating: 34] Favorites ----------- Power Light Ion Engine Engine Light Ion Engine Propulsion Aluminum Leg Treads Light Treads Leg Aluminum Leg Wheel Wheel Utility Hacking Suite Device Improved Heat Sink Storage Medium Storage Unit Processor Visual Processing Unit Hackware Hacking Suite Protection Light Armor Plating Weapon Improved Medium Laser Energy Gun Improved Medium Laser Energy Cannon EM Pulse Cannon Ballistic Gun Assault Rifle Ballistic Cannon Light Cannon Launcher Advanced EMP Blaster Build | -11 -10 -9 -9 -8 ------- Run | Yrd Mat Mat Min Mat Slots Evolved 4 | . . 2 . 2 Power . | . . . . . Propulsion 1 | . . . . 1 Utility 3 | . . 2 . 1 Weapon . | . . . . . Parts Attached 54 | . 12 17 . 25 Power 9 | . 2 5 . 2 Engine 9 | . 2 5 . 2 Core . | . . . . . Reactor . | . . . . . Propulsion 17 | . 3 3 . 11 Treads 3 | . . 2 . 1 Leg 13 | . 3 . . 10 Wheel 1 | . . 1 . . Hover . | . . . . . Flight . | . . . . . Utility 12 | . 3 6 . 3 Device 1 | . 1 . . . Storage 1 | . 1 . . . Processor 1 | . . 1 . . Hackware 6 | . . 3 . 3 Protection 3 | . 1 2 . . Artifact . | . . . . . Weapon 16 | . 4 3 . 9 Energy Gun 7 | . . 2 . 5 Energy Cannon 1 | . . . . 1 Ballistic Gun 4 | . 2 1 . 1 Ballistic Cannon 2 | . 2 . . . Launcher 2 | . . . . 2 Special Weapon . | . . . . . Impact Weapon . | . . . . . Slashing Weapon . | . . . . . Piercing Weapon . | . . . . . Special Melee Weapon . | . . . . . Unidentified Prototypes 4 | . . 2 . 2 Parts Lost 13 | . 3 . . 10 Power 3 | . 1 . . 2 Propulsion 1 | . 1 . . . Utility 3 | . 1 . . 2 Weapon 6 | . . . . 6 Highest Loss Streak 6 | . 2 . . 6 To Critical Strikes . | . . . . . Average Slot Usage (%) 90 | . 95 84 100 88 Engine 9 | . 13 4 11 8 Treads 7 | . . 14 22 7 Leg 17 | . 27 5 . 15 Device 2 | . 6 . . . Storage 11 | . 14 11 11 9 Processor 1 | . . 5 . . Hackware 13 | . . 7 33 31 Protection 4 | . 4 12 . . Energy Gun 8 | . . 11 22 13 Ballistic Gun 7 | . 16 3 . 1 Ballistic Cannon 5 | . 11 6 . . Naked Turns . | . . . . . Heaviest Build 29 | 12 22 24 23 29 Greatest Support 62 | 20 20 40 40 62 Greatest Overweight (x) 1 | . 1 1 . 1 Average Overweight (x) . | . . . . . Largest Inventory Capacity 10 | . 10 10 10 10 Average Capacity 9 | . 9 10 10 10 Most Carried 10 | . 9 10 9 10 Average Carried 8 | . 6 8 9 9 Final Capacity 10 | 8 10 10 10 10 Final Carried 9 | 6 6 9 9 8 Class Distribution -------------------- 58% | Mutant 39% | Hacker-Mutant Dominant Class ---------------- Mutant | -10/Materials Mutant | -9/Materials Hacker-Mutant | -9/Mines Hacker-Mutant | -8/Materials Resources | -11 -10 -9 -9 -8 ----------- Run | Yrd Mat Mat Min Mat Matter Collected 1078 | 200 209 447 19 203 Remotely . | . . . . . Salvage Created 1326 | . 328 579 . 419 Parts 71 | . 22 33 . 16 Haulers Intercepted 3 | . 2 1 . . Recyclers Shooed 4 | . . 4 . . Parts Field Recycled . | . . . . . Retrieved Matter . | . . . . . Parts Self-Destructed . | . . . . . Prevented . | . . . . . Kills | -11 -10 -9 -9 -8 ------- Run | Yrd Mat Mat Min Mat Combat Hostiles Destroyed 25 | . 10 7 . 8 Guns 17 | . 7 4 . 6 Cannons 5 | . 3 2 . . AOE 2 | . . . . 2 Classes Destroyed 10 | . 4 5 . 1 Worker 2 | . . 2 . . Builder 2 | . . 2 . . Hauler 3 | . 2 1 . . Recycler 3 | . . 3 . . Operator 2 | . 1 1 . . Watcher 1 | . . 1 . . Swarmer 8 | . 6 2 . . Grunt 13 | . 4 3 . 6 Sentry 3 | . . 2 . 1 Specialist 1 | . . . . 1 Best Kill Streak 5 | . 3 5 . 3 Combat Bots Only 3 | . 3 2 . 3 Max Kills in Single Turn 2 | . 1 2 . 2 Gunslinging . | . . . . . Exploded 2 | . . . . 2 Melee . | . . . . . Uniques/NPCs Destroyed . | . . . . . Combat | -11 -10 -9 -9 -8 -------- Run | Yrd Mat Mat Min Mat Hostile Shots Fired 239 | . 87 50 . 102 Missed 79 | . 24 20 . 35 Damage Taken 2708 | . 655 389 . 1664 Core 688 | . 74 55 . 559 Absorbed by Shields . | . . . . . Core Remaining (%) 85 | 100 70 . 86 . Volleys Fired 141 | . 53 42 . 46 Largest 2 | . 2 2 . 2 Hottest 119 | . 70 112 . 119 Shots Fired 253 | . 106 83 . 64 Gun 197 | . 76 61 . 60 Cannon 55 | . 30 22 . 3 Launcher 1 | . . . . 1 Special . | . . . . . Kinetic 160 | . 106 38 . 16 Thermal 89 | . . 45 . 44 Explosive . | . . . . . Electromagnetic 4 | . . . . 4 Robot Hit Streak 9 | . 7 9 . 8 Robot Miss Streak 4 | . 4 3 . 2 Penetration Max . | . . . . . Secondary Targets 2 | . 1 . . 1 Max Gunslinging Chain 1 | . 1 . . 1 Shots Hit Robots 158 | . 60 48 . 50 Core Hits 59 | . 22 19 . 18 Critical Kills . | . . . . . Critical Parts Destroyed . | . . . . . Critical Strikes 4 | . . 3 . 1 Burn 4 | . . 3 . 1 Melee Attacks . | . . . . . Impact . | . . . . . Slashing . | . . . . . Piercing . | . . . . . Sneak Attacks . | . . . . . Combat Hostiles . | . . . . . Follow-up Attacks . | . . . . . Damage Inflicted 2683 | . 759 735 . 1189 Guns 1884 | . 566 531 . 787 Cannons 447 | . 187 204 . 56 Explosions 346 | . . . . 346 Melee . | . . . . . Ramming 6 | . 6 . . . Kinetic 1260 | . 753 296 . 211 Thermal 1331 | . . 439 . 892 Explosive . | . . . . . Electromagnetic 86 | . . . . 86 Impact . | . . . . . Slashing . | . . . . . Piercing . | . . . . . Highest Corruption . | . . . . . Average Corruption . | . . . . . Corruption Purged . | . . . . . Corruption Blocked . | . . . . . Overload Shots . | . . . . . Overflow Damage 87 | . . . . 87 Projectiles . | . . . . . Explosions 87 | . . . . 87 Melee . | . . . . . Knockbacks 2 | . 1 1 . . Impact . | . . . . . Kinetic 2 | . 1 1 . . Secondary . | . . . . . Self-Inflicted Damage 201 | . . . . 201 Shots 2 | . . . . 2 Rammed . | . . . . . Targets Rammed 2 | . 2 . . . Kicked 2 | . 2 . . . Crushed . | . . . . . Highest Temperature 247 | . 18 240 . 247 Average Temperature 70 | . 3 57 . 94 Received Heat Transfer 750 | . 201 126 . 423 Effects 2 | . . 2 . . Interference 2 | . . 2 . . Siege Activations . | . . . . . Robots Corrupted . | . . . . . Combat Hostiles . | . . . . . Parts Fried 1 | . . . . 1 Impact Corruptions . | . . . . . Robots Melted 1 | . . 1 . . Combat Hostiles 1 | . . 1 . . Parts Melted 2 | . . 1 . 1 Heat Transferred 2753 | . . 1184 . 1569 Parts Sabotaged . | . . . . . Parts Stolen . | . . . . . Parts Stripped . | . . . . . Power Chain Reactions 1 | . . . . 1 Alert | -11 -10 -9 -9 -8 ------- Run | Yrd Mat Mat Min Mat Peak Influence 291 | . 160 291 54 229 Initial 54 | . . 5 54 20 Average 77 | . 64 111 54 67 Maximum Alert Level 1 | . . 1 . 1 Low Security (%) 94 | . 100 82 100 97 Level 1 5 | . . 17 . 2 Level 2 . | . . . . . Level 3 . | . . . . . Level 4 . | . . . . . Level 5 . | . . . . . High Security . | . . . . . Max Security . | . . . . . Squads Dispatched 6 | . . 1 . 5 Investigation . | . . . . . Extermination . | . . . . . Reinforcement 6 | . . 1 . 5 Assault . | . . . . . Garrison . | . . . . . Intercept . | . . . . . Searches Triggered . | . . . . . Construction Impeded 1 | . . . . 1 Haulers Reinforced . | . . . . . Active Scanning Responses . | . . . . . Cargo Convoy Interrupts . | . . . . . Stealth | -11 -10 -9 -9 -8 --------- Run | Yrd Mat Mat Min Mat Distress Signals 2 | . . 2 . . Communications Jammed . | . . . . . Distress Signals . | . . . . . Times Spotted 41 | . 15 14 . 12 Peak Tracking Total 5 | . 5 3 . 4 Tactical Retreats 3 | . 1 1 . 1 Traps | -11 -10 -9 -9 -8 ------- Run | Yrd Mat Mat Min Mat Traps Triggered . | . . . . . Indirectly . | . . . . . Trap Hack Attempts . | . . . . . Triggered . | . . . . . Disarmed . | . . . . . Reprogrammed . | . . . . . Reused . | . . . . . Traps Extracted . | . . . . . Installed . | . . . . . Triggered . | . . . . . Machines | -11 -10 -9 -9 -8 ---------- Run | Yrd Mat Mat Min Mat Machines Disabled 7 | . . 1 . 6 Max in Single Turn 5 | . . 1 . 5 Machines Repaired . | . . . . . Machines Dismantled . | . . . . . Machines Sabotaged . | . . . . . Overloaded Fab Kills . | . . . . . Hacking | -11 -10 -9 -9 -8 --------- Run | Yrd Mat Mat Min Mat Machines Accessed 8 | . 4 1 . 3 Terminals 7 | . 4 1 . 2 Fabricators . | . . . . . Repair Stations . | . . . . . Recycling Units 1 | . . . . 1 Scanalyzers . | . . . . . Garrison Access . | . . . . . Total Hacks 23 | . 9 3 . 11 Successful 16 | . 5 1 . 10 Failed 7 | . 4 2 . 1 Catastrophic 1 | . 1 . . . Database Lockouts . | . . . . . Manual 14 | . 7 . . 7 Terminals 21 | . 9 3 . 9 Fabricators . | . . . . . Repair Stations . | . . . . . Recycling Units 2 | . . . . 2 Scanalyzers . | . . . . . Garrison Access . | . . . . . Terminal Hacks 7 | . 1 1 . 5 Record 2 | . 1 1 . . Prototype ID Bank 1 | . . . . 1 Unreport Threat 2 | . . . . 2 Transport Status 1 | . . . . 1 Recall Reinforcements 1 | . . . . 1 Fabricator Hacks . | . . . . . Repair Station Hacks . | . . . . . Recycling Unit Hacks 2 | . . . . 2 Report Inventory 1 | . . . . 1 Retrieve Components 1 | . . . . 1 Scanalyzer . | . . . . . Garrison Access Hacks . | . . . . . Unauthorized Hacks 7 | . 4 . . 3 Terminals 7 | . 4 . . 3 Botnet 6 | . 4 . . 2 Disrupt 1 | . . . . 1 Fabricators . | . . . . . Repair Stations . | . . . . . Recycling Units . | . . . . . Scanalyzers . | . . . . . Garrison Access . | . . . . . Data Cores Recovered 1 | . 1 . . . Used . | . . . . . Hacking Detections 7 | . 3 1 . 3 Full Trace Events . | . . . . . Feedback Events . | . . . . . Feedback Blocked . | . . . . . Robot Schematics Acquired . | . . . . . Robots Built . | . . . . . Authchips . | . . . . . Time . | . . . . . Total Robot Build Rating . | . . . . . Part Schematics Acquired . | . . . . . Parts Built . | . . . . . Authchips . | . . . . . Time . | . . . . . Total Part Build Rating . | . . . . . Parts Repaired . | . . . . . Time . | . . . . . Parts Recycled . | . . . . . Recycled Matter . | . . . . . Retrieved Matter . | . . . . . Retrieved Components 2 | . . . . 2 Parts Scanalyzed . | . . . . . Part Schematics Acquired . | . . . . . Parts Damaged . | . . . . . Bothacking | -11 -10 -9 -9 -8 ------------ Run | Yrd Mat Mat Min Mat Used RIF Installer . | . . . . . Robots Hacked . | . . . . . Non-combat . | . . . . . Combat . | . . . . . Robot Hacks Applied . | . . . . . Relay Couplers Released . | . . . . . Fabnet Peak Effective % . | . . . . . Robots Rewired . | . . . . . Allies Hacked . | . . . . . Hacks Repelled . | . . . . . Allies | -11 -10 -9 -9 -8 -------- Run | Yrd Mat Mat Min Mat Total Allies . | . . . . . Largest Group . | . . . . . Highest-Rated Group . | . . . . . Highest-Rated Ally . | . . . . . Total Orders . | . . . . . Ally Attacks . | . . . . . Total Damage . | . . . . . Kills . | . . . . . Allies Corrupted . | . . . . . Allies Melted . | . . . . . Intel | -11 -10 -9 -9 -8 ------- Run | Yrd Mat Mat Min Mat Robot Analysis Total . | . . . . . Derelict Logs Recovered . | . . . . . Drone Launches . | . . . . . Drone Recoveries . | . . . . . Exploration | -11 -10 -9 -9 -8 ------------- Run | Yrd Mat Mat Min Mat Turns Passed 2212 | . 861 563 111 677 Spaces Moved 1077 | 1 474 247 70 285 Core . | . . . . . Treads 278 | . . 154 70 54 Legs 750 | 1 474 44 . 231 Wheels 49 | . . 49 . . Hover . | . . . . . Flight . | . . . . . Fastest Speed 90 | 120 120 95 160 90 Average Speed 133 | 120 139 150 160 103 Slowest Speed 190 | 120 190 190 160 180 Overloaded Moves . | . . . . . Propulsion Burnouts . | . . . . . Robots Hopped . | . . . . . Cave-ins Triggered . | . . . . . Exploration Rate (%) 25 | 2 69 24 19 14 Regions Visited 4 Branch Regions 1 Pre-discovered Areas . | . . . . . Known Exits Taken . | . . . . . Unknown Exits Taken 4 | 1 1 1 1 . Scrap Searched 1 | . . . 1 . Spaces Dug . | . . . . . Terrain Destroyed 33 | . . . . 33 Melee . | . . . . . Projectile . | . . . . . AOE 33 | . . . . 33 Terrain Rammed . | . . . . . Walls Destroyed . | . . . . . Machines Disabled . | . . . . . Actions | -11 -10 -9 -9 -8 --------- Run | Yrd Mat Mat Min Mat Total 1611 | . 575 361 69 606 Wait 264 | . 15 27 . 222 Move 1073 | . 473 246 69 285 Hop . | . . . . . Pick Up 43 | . 12 14 . 17 Fast Attach 8 | . . 4 . 4 Attach 25 | . 7 5 . 13 Detach 1 | . . 1 . . Swap 22 | . 5 8 . 9 Drop 32 | . 8 14 . 10 Fire 141 | . 53 42 . 46 Melee . | . . . . . Ram . | . . . . . Kick 2 | . 2 . . . Crush . | . . . . . Escape Stasis . | . . . . . Rewire . | . . . . . Trap . | . . . . . Miscellaneous . | . . . . . Route ------- -11/Scrapyard -10/Materials -9/Materials -9/Mines -8/Materials History --------- Turn | Location | Event 1 | -11/Scrapyard | Discovered new exit (range 0) 1 | -11/Scrapyard | Entered Materials 304 | -10/Materials | Build established: Mutant 848 | -10/Materials | Discovered new exit (range 5) 862 | -10/Materials | Entered another Materials area 862 | -9/Materials | Evolved 2 slots: Utility x2 1236 | -9/Materials | Discovered new exit (range 17) 1425 | -9/Materials | Entered Mines 1461 | -9/Mines | Met a Derelict bent on vengeance 1515 | -9/Mines | Discovered new exit (range 8) 1536 | -9/Mines | Entered Materials 1536 | -8/Materials | Evolved 2 slots: Propulsion x1, Utility x1 1632 | -8/Materials | Build established: Hacker-Mutant 1986 | -8/Materials | Core integrity fell below 50% 2013 | -8/Materials | Lost 3 parts (1p2w) 2128 | -8/Materials | Core integrity fell below 20% 2190 | -8/Materials | Lost 6 parts (1p2u3w) 2213 | -8/Materials | Destroyed by X-57 Shotgunner with High-powered Shotgun Last Messages --------------- 02129_ G-47 Trooper suffers critical hit (Burn). 02130_ Acquired Minigun. 02135_ Hacking Suite destroyed. 02136_ G-50 Soldier destroyed. 02150_ Imp. Ion Engine destroyed. 02150_ G-47 Trooper destroyed. 02154_ Acquired Particle Gun. 02157_ G-47 Trooper suffers critical hit (Burn). 02159_ Hacking Suite destroyed. 02159_ Critical hit (Burn: +37). 02163_ Lgt. Nuclear Core melted. 02163_ G-47 Trooper destroyed. 02168_ Acquired 54 matter. 02170_ Acquired Imp. Heat Sink. 02189_ Acquired Imp. Ion Engine. 02199_ ALERT: Suspicious intruders detected, dispatching Specialist reinforcements to area. 02200_ Acquired 58 matter. 02209_ X-57 Shotgunner destroyed. 02209_ Switching to secondary target: X-57 Shotgunner. Map ----- +----------------------------------------------------+ | # % % # ####### #??? | | # % ## ##############??? | | / % "# # ! #???????? | | # ## # = #???????? | | ######## #"# + == #???????? | | %| # # = #???????? | | %%! " # #???????? | | # ####+####???????? | | # #??# #?########## | | # #??# #?# # | | # #??# ### "" # | | ###"####+### #### ### " # | | ??### # "" !# | | ????# !%*+% # | | ????# # # | | ????# ############# # == # | | ????# #??????????## # = # | | ????# #???????????# # = # | | ????# #???????????# ###### ### | | ????# #???????????# ####?###?? | | ????# ????????????# #?????? | | ????# ????????????# #?????? | | ???? ????????????# = #?????? | | ???? ????????????#%!!%#?????? | | ???? H ????????????#+##;###???? | | ???? ?????????????# x[*@ #???? | | ?????? ?????????????# [ #???? | | ????????????????????# ! #???? | | ????????????????????# !#???? | | ????????????????????# "T" #???? | | ????????????????????# """ #???? | | ????????????????????########???? | | ???????????????????????????????? | | ???????????????????????????????? | | ???????????????????????????????? | | ???????????????????????????????? | | ???????????????????????????????? | | ???????????????????????????????? | | ???????????????????????????????? | | ???????????????????????????????? | | ???????????????????????????????? | | ???????????????????????????????? | | ???????????????????????????????? | | ???????????????????????????????? | | ???????????????????????????????? | | ???????????????????????????????? | | ???????????????????????????????? | | ???????????????????????????????? | | ???????????????????????????????? | | ???????????????????????????????? | +----------------------------------------------------+ Best States ------------- Heat Dissipation 39 Energy Generation 12 Energy Capacity 265 Matter Stores 300 Matter Capacity 300 Sight Range 18 Terrain Scan Density 10 Armor Coverage 300 Evasion (%) 57 Recoil Reduction 3 Offensive Hacking 40 Defensive Hacking 10 Item Schematics ----------------- None Robot Schematics ------------------ None Fabricated ------------ Nothing Alien Tech Used ----------------- None Achievements -------------- None Challenges ------------ None Game ------ Seed GuidedTiamatSuperbattery Manual? 0 Play Time 00:25:14 Cumulative 86.5 hours Start 2024.04.22 @ 00:59:04 End 2024.04.22 @ 01:20:17 Sessions 1 Manual Loads 0 Difficulty Rogue Special Mode None Game No. 101 Rogue 86 Adventurer 15 Explorer 0 Win Type - Total 1 Types 0/0/1/0/0/0/0/0/0 Lore% 33 Gallery% 60 Achievement% 47 Wizard Run 0 Options --------- Layout 0 ASCII 0 Keyboard 0 Movement Mouse Keybinds 0 Fullscreen 2 Font 36/Smallcaps Map View 76x50 Zoom Use 0% Tactical HUD 1 Map Filters NONE Filters NONE Steam 1 RUN: b77d3080-70f6-47bc-8eae-3d9a4433da5a